fUSD/lending_fUSD_20260610
["ID","MTS","AMOUNT","RATE_DAILY","PERIOD"]
[424695455,1781057446000,-4190.0,0.00019,2]
[424695590,1781057447000,-167.528,0.00019433,2]
[424695579,1781057447000,-242.103,0.00019433,2]
[424695581,1781057447000,-250.0,0.00019433,2]
[424695584,1781057447000,-167.63,0.00019433,2]
[424695586,1781057447000,-250.0,0.00019433,2]
[424695588,1781057447000,-195.316,0.00019433,2]
[424695593,1781057447000,-250.0,0.00019433,2]
[424695602,1781057447000,-1358.0,0.00019433,2]
[424695595,1781057447000,-247.654,0.00019433,2]
[424695597,1781057447000,-189.0,0.00019433,2]
[424695613,1781057447000,-250.0,0.0001944,2]
[424695606,1781057447000,-1276.177,0.00019433,2]
[424695608,1781057447000,-401.0,0.00019433,2]
[424695611,1781057447000,-1228.524,0.00019433,2]
[424695615,1781057447000,-172.0,0.0001944,2]
[424695620,1781057447000,-2000.0,0.0001944,2]
[424695623,1781057447000,-2000.0,0.0001944,2]
[424695637,1781057447000,-241.6875,0.00019495,2]
[424695630,1781057447000,-152.0,0.00019468,26]
[424695618,1781057447000,-2000.0,0.0001944,2]
[424695571,1781057447000,-220.0,0.00019433,2]
[424695625,1781057447000,-2000.0,0.0001944,2]
[424695604,1781057447000,-165.425,0.00019433,2]
[424695573,1781057447000,-208.969,0.00019433,2]
[424695542,1781057447000,-153.75591805,0.00019208,2]
[424695569,1781057447000,-250.0,0.00019433,2]
[424695628,1781057447000,-4106.0,0.00019452,2]
[424695522,1781057447000,-200.0,0.00019178,2]
[424695518,1781057447000,-150.0,0.00019178,2]
[424695520,1781057447000,-220.36972287,0.00019178,2]
[424695524,1781057447000,-200.0,0.00019178,2]
[424695527,1781057447000,-260.0,0.00019178,2]
[424695532,1781057447000,-239.344721,0.00019178,2]
[424695529,1781057447000,-239.344721,0.00019178,2]
[424695544,1781057447000,-391.0,0.00019296,2]
[424695536,1781057447000,-239.344721,0.00019178,2]
[424695533,1781057447000,-239.344721,0.00019178,2]
[424695538,1781057447000,-1834.07049524,0.000192,2]
[424695540,1781057447000,-151.0,0.00019208,2]
[424695548,1781057447000,-1854.8132546,0.000193,2]
[424695546,1781057447000,-9711.99420486,0.000193,2]
[424695551,1781057447000,-3554.4396299,0.000193,2]
[424695553,1781057447000,-152.0,0.00019308,25]
[424695555,1781057447000,-500.0,0.00019313,2]
[424695564,1781057447000,-250.0,0.00019433,2]
[424695562,1781057447000,-278.0,0.00019433,2]
[424695567,1781057447000,-200.0,0.00019433,2]
[424695557,1781057447000,-534.74,0.00019349,2]
[424695559,1781057447000,-196.84226118,0.00019419,2]
[424695576,1781057447000,-247.969,0.00019433,2]
[424695632,1781057447000,-391.0,0.00019488,2]
[424695600,1781057447000,-3562.865,0.00019433,2]
[424695639,1781057447000,-310.078125,0.00019495,2]
[424695693,1781057447000,-1377.42282658,0.00019495,2]
[424695698,1781057447000,-151.0,0.00019495,2]
[424695695,1781057447000,-200.0,0.00019495,2]
[424695700,1781057447000,-693.39197629,0.00019495,2]
[424695712,1781057447000,-1481.2378076,0.00019495,2]
[424695720,1781057447000,-151.0,0.00019495,2]
[424695722,1781057447000,-151.0,0.00019495,2]
[424695716,1781057447000,-151.0,0.00019495,2]
[424695714,1781057447000,-151.0,0.00019495,2]
[424695718,1781057447000,-1536.04360648,0.00019495,2]
[424695726,1781057447000,-151.0,0.00019495,2]
[424695724,1781057447000,-1592.87721992,0.00019495,2]
[424695735,1781057447000,-151.0,0.00019495,2]
[424695731,1781057447000,-151.0,0.00019495,2]
[424695729,1781057447000,-1651.81367706,0.00019495,2]
[424695737,1781057447000,-209.40437684,0.00019495,2]
[424695739,1781057447000,-1712.93078311,0.00019495,2]
[424695741,1781057447000,-151.0,0.00019495,2]
[424695743,1781057447000,-151.0,0.00019495,2]
[424695748,1781057447000,-151.0,0.00019495,2]
[424695746,1781057447000,-1776.30922209,0.00019495,2]
[424695750,1781057447000,-500.0,0.00019495,2]
[424695634,1781057447000,-188.41146214,0.00019495,2]
[424695703,1781057447000,-151.0,0.00019495,2]
[424695707,1781057447000,-9552.16786547,0.00019495,2]
[424695733,1781057447000,-151.0,0.00019495,2]
[424695705,1781057447000,-1428.38747117,0.00019495,2]
[424695709,1781057447000,-151.0,0.00019495,2]
[424695660,1781057447000,-1148.61238259,0.00019495,2]
[424695646,1781057447000,-200.0,0.00019495,2]
[424695648,1781057447000,-693.39197629,0.00019495,2]
[424695651,1781057447000,-1068.11,0.00019495,2]
[424695653,1781057447000,-151.0,0.00019495,2]
[424695662,1781057447000,-151.0,0.00019495,2]
[424695641,1781057447000,-174.61919141,0.00019495,2]
[424695658,1781057447000,-151.0,0.00019495,2]
[424695655,1781057447000,-1107.63007,0.00019495,2]
[424695667,1781057447000,-160.0,0.00019495,2]
[424695669,1781057447000,-209.40437684,0.00019495,2]
[424695644,1781057447000,-1030.0,0.00019495,2]
[424695691,1781057447000,-151.0,0.00019495,2]
[424695752,1781057447000,-151.0,0.00019495,2]
[424695682,1781057447000,-151.0,0.00019495,2]
[424695674,1781057447000,-151.0,0.00019495,2]
[424695686,1781057447000,-151.0,0.00019495,2]
[424695684,1781057447000,-1328.27659266,0.00019495,2]
[424695678,1781057447000,-151.0,0.00019495,2]
[424695680,1781057447000,-578.20924308,0.00019495,2]
[424695665,1781057447000,-1191.11104074,0.00019495,2]
[424695676,1781057447000,-1280.88388877,0.00019495,2]
[424695688,1781057447000,-151.0,0.00019495,2]
[424695671,1781057447000,-1235.18214925,0.00019495,2]
[424695819,1781057448000,-152.0,0.00019495,2]
[424695821,1781057448000,-209.40437684,0.00019495,2]
[424695817,1781057448000,-151.0,0.00019495,2]
[424695803,1781057448000,-151.0,0.00019495,2]
[424695813,1781057448000,-151.0,0.00019495,2]
[424695810,1781057448000,-500.0,0.00019495,2]
[424695815,1781057448000,-500.0,0.00019495,2]
[424695805,1781057448000,-4853.74383408,0.00019495,2]
[424695812,1781057448000,-151.0,0.00019495,2]
[424695822,1781057448000,-151.0,0.00019495,2]
[424695808,1781057448000,-152.0,0.00019495,2]
[424695826,1781057448000,-721.12765534,0.00019495,2]
[424695836,1781057448000,-152.0,0.00019495,2]
[424695828,1781057448000,-152.0,0.00019495,2]
[424695829,1781057448000,-151.0,0.00019495,2]
[424695831,1781057448000,-500.0,0.00019495,2]
[424695840,1781057448000,-152.0,0.00019495,2]
[424695833,1781057448000,-152.0,0.00019495,2]
[424695835,1781057448000,-151.0,0.00019495,2]
[424695838,1781057448000,-152.0,0.00019495,2]
[424695842,1781057448000,-152.0,0.00019495,2]
[424695845,1781057448000,-152.0,0.00019495,2]
[424695843,1781057448000,-152.0,0.00019495,2]
[424695847,1781057448000,-152.0,0.00019495,2]
[424695824,1781057448000,-500.0,0.00019495,2]
[424695806,1781057448000,-151.0,0.00019495,2]
[424695761,1781057448000,-151.0,0.00019495,2]
[424695788,1781057448000,-500.0,0.00019495,2]
[424695851,1781057448000,-1854.8132546,0.000195,2]
[424695759,1781057448000,-1842.0326633,0.00019495,2]
[424695763,1781057448000,-151.0,0.00019495,2]
[424695754,1781057448000,-209.40437684,0.00019495,2]
[424695757,1781057448000,-151.0,0.00019495,2]
[424695765,1781057448000,-500.0,0.00019495,2]
[424695767,1781057448000,-1910.18787185,0.00019495,2]
[424695769,1781057448000,-2080.17592889,0.00019495,2]
[424695770,1781057448000,-151.0,0.00019495,2]
[424695775,1781057448000,-1980.8648231,0.00019495,2]
[424695773,1781057448000,-151.0,0.00019495,2]
[424695772,1781057448000,-151.0,0.00019495,2]
[424695777,1781057448000,-500.0,0.00019495,2]
[424695780,1781057448000,-2054.15682156,0.00019495,2]
[424695778,1781057448000,-151.0,0.00019495,2]
[424695781,1781057448000,-151.0,0.00019495,2]
[424695794,1781057448000,-500.0,0.00019495,2]
[424695801,1781057448000,-500.0,0.00019495,2]
[424695797,1781057448000,-151.0,0.00019495,2]
[424695795,1781057448000,-151.0,0.00019495,2]
[424695785,1781057448000,-151.0,0.00019495,2]
[424695799,1781057448000,-151.0,0.00019495,2]
[424695783,1781057448000,-500.0,0.00019495,2]
[424695792,1781057448000,-151.0,0.00019495,2]
[424695790,1781057448000,-151.0,0.00019495,2]
[424695787,1781057448000,-151.0,0.00019495,2]
[424695853,1781057448000,-3554.4396299,0.000195,2]
[424695854,1781057448000,-350.0,0.00019507,2]
[424695860,1781057448000,-1300.0,0.00019543,2]
[424695910,1781057448000,-801.85129954,0.00019715,2]
[424695912,1781057448000,-151.0,0.00019715,2]
[424695920,1781057448000,-831.51979762,0.0001977,2]
[424695918,1781057448000,-500.0,0.00019768,2]
[424695927,1781057448000,-391.0,0.00019782,2]
[424695924,1781057448000,-434.0,0.00019776,2]
[424695922,1781057448000,-151.0,0.0001977,2]
[424695929,1781057448000,-2050.93777206,0.00019786,2]
[424695931,1781057448000,-152.0,0.00019788,28]
[424695933,1781057448000,-200.0,0.00019789,2]
[424695935,1781057448000,-1000.0,0.000198,10]
[424695937,1781057448000,-862.28603014,0.00019825,2]
[424695914,1781057448000,-1253.79837696,0.00019715,2]
[424695939,1781057448000,-151.0,0.00019825,2]
[424695943,1781057448000,-166.0,0.0001983,2]
[424695949,1781057448000,-391.0,0.00019885,2]
[424695947,1781057448000,-151.0,0.0001988,2]
[424695951,1781057448000,-500.0,0.00019893,2]
[424695946,1781057448000,-894.19061325,0.0001988,2]
[424695953,1781057448000,-5012.36793604,0.000199,3]
[424695955,1781057448000,-2000.0,0.000199,2]
[424695959,1781057448000,-151.0,0.00019935,2]
[424695966,1781057448000,-152.0,0.00019948,29]
[424695961,1781057448000,-391.0,0.00019942,2]
[424695964,1781057448000,-184.70668,0.00019947,2]
[424695849,1781057448000,-9711.99420486,0.000195,2]
[424695941,1781057448000,-249.0,0.00019825,2]
[424695916,1781057448000,-160.22,0.00019767,2]
[424695957,1781057448000,-927.27566594,0.00019935,2]
[424695902,1781057448000,-9711.99420486,0.000197,2]
[424695908,1781057448000,-951.87,0.00019709,2]
[424695858,1781057448000,-391.43,0.00019507,2]
[424695856,1781057448000,-350.0,0.00019507,2]
[424695861,1781057448000,-1300.0,0.00019543,2]
[424695865,1781057448000,-1300.0,0.00019543,2]
[424695867,1781057448000,-1300.0,0.00019543,2]
[424695870,1781057448000,-1300.0,0.00019543,2]
[424695872,1781057448000,-1300.0,0.00019543,2]
[424695882,1781057448000,-5033.33235594,0.0001955,2]
[424695883,1781057448000,-745.65223615,0.00019605,2]
[424695863,1781057448000,-1300.0,0.00019543,2]
[424695876,1781057448000,-908.0,0.00019543,2]
[424695869,1781057448000,-1300.0,0.00019543,2]
[424695878,1781057448000,-719.04747942,0.0001955,2]
[424695874,1781057448000,-1300.0,0.00019543,2]
[424695906,1781057448000,-3554.4396299,0.000197,2]
[424695900,1781057448000,-391.0,0.00019678,2]
[424695898,1781057448000,-5412.68958227,0.0001966,2]
[424695894,1781057448000,-773.24136889,0.0001966,2]
[424695895,1781057448000,-151.0,0.0001966,2]
[424695904,1781057448000,-1854.8132546,0.000197,2]
[424695887,1781057448000,-5219.56565311,0.00019605,2]
[424695889,1781057448000,-152.0,0.00019628,27]
[424695885,1781057448000,-151.0,0.00019605,2]
[424695880,1781057448000,-151.0,0.0001955,2]
[424695891,1781057448000,-2129.0,0.00019644,2]
[424696047,1781057449000,-877.0,0.0002,2]
[424696045,1781057449000,-2186.0,0.0002,2]
[424696043,1781057449000,-198.14,0.0002,2]
[424696051,1781057449000,-684.0,0.0002,2]
[424696032,1781057449000,-13125.31550498,0.0002,2]
[424696049,1781057449000,-1747.91581194,0.0002,2]
[424696036,1781057449000,-2295.40938311,0.0002,2]
[424696038,1781057449000,-598.0,0.0002,2]
[424696034,1781057449000,-152.0,0.0002,2]
[424696053,1781057449000,-3594.0,0.0002,2]
[424696040,1781057449000,-4625.144155,0.0002,2]
[424696055,1781057449000,-800.0,0.0002,2]
[424696109,1781057449000,-477.384432,0.0002,2]
[424696063,1781057449000,-151.0,0.0002,2]
[424696059,1781057449000,-379.0,0.0002,2]
[424696068,1781057449000,-151.0,0.0002,2]
[424696072,1781057449000,-218.445469,0.0002,2]
[424696070,1781057449000,-218.445469,0.0002,2]
[424696065,1781057449000,-151.0,0.0002,2]
[424696061,1781057449000,-400.0,0.0002,2]
[424696074,1781057449000,-218.445469,0.0002,2]
[424696076,1781057449000,-218.445469,0.0002,2]
[424696099,1781057449000,-151.0,0.0002,2]
[424696116,1781057449000,-862.799608,0.0002,2]
[424696030,1781057449000,-8000.0,0.0002,2]
[424696057,1781057449000,-1366.0,0.0002,2]
[424696017,1781057449000,-26840.37437958,0.0002,2]
[424695993,1781057449000,-151.0,0.0001995,2]
[424696019,1781057449000,-1314.77233542,0.0002,2]
[424696122,1781057449000,-862.799608,0.0002,2]
[424695977,1781057449000,-602.027517,0.0001995,2]
[424695968,1781057449000,-504713.30331671,0.0001995,15]
[424695973,1781057449000,-602.027517,0.0001995,2]
[424695971,1781057449000,-602.027517,0.0001995,2]
[424695975,1781057449000,-602.027517,0.0001995,2]
[424695979,1781057449000,-151.0,0.0001995,2]
[424695981,1781057449000,-151.0,0.0001995,2]
[424695984,1781057449000,-151.0,0.0001995,2]
[424695986,1781057449000,-556.403067,0.0001995,2]
[424695989,1781057449000,-556.403067,0.0001995,2]
[424696000,1781057449000,-961.58486558,0.0001999,2]
[424695991,1781057449000,-556.403067,0.0001995,2]
[424695996,1781057449000,-556.403067,0.0001995,2]
[424695998,1781057449000,-151.0,0.0001995,2]
[424696002,1781057449000,-151.0,0.0001999,2]
[424696004,1781057449000,-5291.53444339,0.0002,2]
[424696006,1781057449000,-1557.47112024,0.0002,2]
[424696009,1781057449000,-179.21555397,0.0002,2]
[424696011,1781057449000,-25984.28549199,0.0002,2]
[424696023,1781057449000,-200.0,0.0002,2]
[424696013,1781057449000,-3966.66481669,0.0002,2]
[424696021,1781057449000,-9999.99999901,0.0002,2]
[424696015,1781057449000,-3950.0,0.0002,2]
[424696027,1781057449000,-52457.76322009,0.0002,2]
[424696025,1781057449000,-1061.28257444,0.0002,2]
[424696095,1781057449000,-151.0,0.0002,2]
[424696203,1781057449000,-1747.91581194,0.000202,2]
[424696103,1781057449000,-477.384432,0.0002,2]
[424696156,1781057449000,-151.0,0.0002,2]
[424696158,1781057449000,-151.0,0.0002,2]
[424696162,1781057449000,-188.41146214,0.00020043,2]
[424696160,1781057449000,-835.0,0.0002,2]
[424696167,1781057449000,-181.08010149,0.00020043,2]
[424696170,1781057449000,-217.15233878,0.00020043,2]
[424696175,1781057449000,-200.0,0.00020043,2]
[424696164,1781057449000,-310.078125,0.00020043,2]
[424696154,1781057449000,-851.0,0.0002,2]
[424696173,1781057449000,-151.0,0.00020043,2]
[424696169,1781057449000,-200.0,0.00020043,2]
[424696177,1781057449000,-719.04747942,0.00020043,2]
[424696181,1781057449000,-151.0,0.00020043,2]
[424696179,1781057449000,-9905.59807649,0.00020043,2]
[424696184,1781057449000,-151.0,0.00020043,2]
[424696186,1781057449000,-217.15233878,0.00020043,2]
[424696198,1781057449000,-1125.0,0.00020048,2]
[424696189,1781057449000,-2157.14243826,0.00020043,2]
[424696191,1781057449000,-217.15233878,0.00020043,2]
[424696193,1781057449000,-997.16350561,0.00020045,2]
[424696200,1781057449000,-152.0,0.00020108,30]
[424696196,1781057449000,-151.0,0.00020045,2]
[424696205,1781057449000,-152.0,0.00020268,31]
[424696207,1781057449000,-252.77714291,0.00020268,5]
[424696097,1781057449000,-151.0,0.0002,2]
[424696151,1781057449000,-4559.0,0.0002,2]
[424696145,1781057449000,-1591.0,0.0002,2]
[424696209,1781057449000,-2000.0,0.000203,2]
[424696141,1781057449000,-5259.416845,0.0002,2]
[424696143,1781057449000,-1009.0,0.0002,2]
[424696101,1781057449000,-692.0,0.0002,2]
[424696118,1781057449000,-862.799608,0.0002,2]
[424696111,1781057449000,-846.0,0.0002,2]
[424696078,1781057449000,-151.0,0.0002,2]
[424696113,1781057449000,-752.0,0.0002,2]
[424696107,1781057449000,-477.384432,0.0002,2]
[424696084,1781057449000,-239.344721,0.0002,2]
[424696082,1781057449000,-151.0,0.0002,2]
[424696126,1781057449000,-2680.313307,0.0002,2]
[424696105,1781057449000,-477.384432,0.0002,2]
[424696120,1781057449000,-862.799608,0.0002,2]
[424696080,1781057449000,-151.0,0.0002,2]
[424696086,1781057449000,-239.344721,0.0002,2]
[424696139,1781057449000,-5259.416845,0.0002,2]
[424696149,1781057449000,-6931.97,0.0002,2]
[424696147,1781057449000,-3597.0,0.0002,2]
[424696124,1781057449000,-2680.313307,0.0002,2]
[424696136,1781057449000,-2363.0,0.0002,2]
[424696128,1781057449000,-2680.313307,0.0002,2]
[424696132,1781057449000,-5259.416845,0.0002,2]
[424696130,1781057449000,-2680.313307,0.0002,2]
[424696091,1781057449000,-239.344721,0.0002,2]
[424696093,1781057449000,-151.0,0.0002,2]
[424696089,1781057449000,-239.344721,0.0002,2]
[424696134,1781057449000,-5259.416845,0.0002,2]
[424696286,1781057450000,-217.15233878,0.00020864,2]
[424696293,1781057450000,-750.0,0.00020897,2]
[424696284,1781057450000,-160.0,0.00020864,2]
[424696291,1781057450000,-750.0,0.00020897,2]
[424696316,1781057450000,-160.0,0.00021,2]
[424696279,1781057450000,-1747.91581194,0.000208,2]
[424696275,1781057450000,-200.0,0.00020767,2]
[424696277,1781057450000,-1050.0,0.00020767,7]
[424696269,1781057450000,-23028.35725986,0.000207,2]
[424696288,1781057450000,-3297.0,0.00020875,2]
[424696282,1781057450000,-241.6875,0.00020864,2]
[424696308,1781057450000,-1212.58963967,0.00021,2]
[424696297,1781057450000,-750.0,0.00020897,2]
[424696302,1781057450000,-651.0,0.00020897,2]
[424696318,1781057450000,-160.0,0.00021,3]
[424696306,1781057450000,-300.0,0.00020999,2]
[424696304,1781057450000,-300.0,0.00020999,2]
[424696299,1781057450000,-750.0,0.00020897,2]
[424696312,1781057450000,-1452.33788047,0.00021,2]
[424696320,1781057450000,-160.0,0.00021,4]
[424696310,1781057450000,-200.13118311,0.00021,2]
[424696314,1781057450000,-600.0,0.00021,7]
[424696267,1781057450000,-1747.91581194,0.000206,2]
[424696295,1781057450000,-750.0,0.00020897,2]
[424696273,1781057450000,-2500.0,0.00020767,2]
[424696238,1781057450000,-310.078125,0.00020591,2]
[424696261,1781057450000,-225.18697532,0.00020591,2]
[424696211,1781057450000,-1610.6,0.00020381,2]
[424696222,1781057450000,-150.0,0.0002058,2]
[424696224,1781057450000,-150.0,0.0002058,2]
[424696214,1781057450000,-687.3,0.000204,2]
[424696216,1781057450000,-1747.91581194,0.000204,2]
[424696218,1781057450000,-500.0,0.0002049,2]
[424696220,1781057450000,-21886.17,0.00020548,2]
[424696226,1781057450000,-150.0,0.0002058,2]
[424696228,1781057450000,-150.0,0.0002058,2]
[424696233,1781057450000,-150.0,0.0002058,2]
[424696236,1781057450000,-188.41146214,0.00020591,2]
[424696263,1781057450000,-2236.95670847,0.00020591,2]
[424696234,1781057450000,-150.0,0.0002058,2]
[424696249,1781057450000,-200.0,0.00020591,2]
[424696247,1781057450000,-151.0,0.00020591,2]
[424696245,1781057450000,-225.18697532,0.00020591,2]
[424696240,1781057450000,-187.78006524,0.00020591,2]
[424696243,1781057450000,-200.0,0.00020591,2]
[424696256,1781057450000,-151.0,0.00020591,2]
[424696254,1781057450000,-10272.10520532,0.00020591,2]
[424696259,1781057450000,-151.0,0.00020591,2]
[424696271,1781057450000,-2000.0,0.000207,2]
[424696251,1781057450000,-750.267022,0.00020591,2]
[424696265,1781057450000,-225.18697532,0.00020591,2]
[424696231,1781057450000,-150.0,0.0002058,2]
[424696323,1781057450000,-160.0,0.00021,5]
[424696378,1781057450000,-310.078125,0.00021139,2]
[424696341,1781057450000,-3594.0,0.00021,2]
[424696385,1781057450000,-233.5188934,0.00021139,2]
[424696405,1781057450000,-233.5188934,0.00021139,2]
[424696414,1781057450000,-6075.0,0.00021232,2]
[424696400,1781057450000,-233.5188934,0.00021139,2]
[424696402,1781057450000,-2319.72410669,0.00021139,2]
[424696395,1781057450000,-151.0,0.00021139,2]
[424696416,1781057450000,-1214.0,0.00021232,2]
[424696409,1781057450000,-1654.80926452,0.000212,2]
[424696397,1781057450000,-151.0,0.00021139,2]
[424696411,1781057450000,-1747.91581194,0.000212,2]
[424696407,1781057450000,-1232.0,0.0002119,7]
[424696440,1781057450000,-4778.31,0.0002137,2]
[424696421,1781057450000,-500.47668198,0.0002127,2]
[424696426,1781057450000,-300.0,0.00021272,2]
[424696428,1781057450000,-19222.27,0.00021273,2]
[424696430,1781057450000,-1206.46,0.00021273,2]
[424696433,1781057450000,-1742.98,0.00021273,2]
[424696419,1781057450000,-3643.0,0.00021232,2]
[424696424,1781057450000,-300.0,0.00021272,2]
[424696435,1781057450000,-555.71,0.00021273,2]
[424696437,1781057450000,-2256.0,0.00021284,2]
[424696442,1781057450000,-1773.02539383,0.00021377,2]
[424696445,1781057450000,-251.03494236,0.00021377,2]
[424696390,1781057450000,-200.0,0.00021139,2]
[424696387,1781057450000,-151.0,0.00021139,2]
[424696329,1781057450000,-4625.144155,0.00021,2]
[424696393,1781057450000,-10652.17309792,0.00021139,2]
[424696383,1781057450000,-200.0,0.00021139,2]
[424696346,1781057450000,-1366.0,0.00021,2]
[424696348,1781057450000,-379.0,0.00021,2]
[424696333,1781057450000,-877.0,0.00021,2]
[424696327,1781057450000,-500.0,0.00021,2]
[424696340,1781057450000,-684.0,0.00021,2]
[424696337,1781057450000,-1654.80926452,0.00021,2]
[424696331,1781057450000,-2186.0,0.00021,2]
[424696344,1781057450000,-800.0,0.00021,2]
[424696325,1781057450000,-486.79364518,0.00021,2]
[424696350,1781057450000,-692.0,0.00021,2]
[424696354,1781057450000,-752.0,0.00021,2]
[424696335,1781057450000,-1747.91581194,0.00021,2]
[424696357,1781057450000,-2363.0,0.00021,2]
[424696359,1781057450000,-4559.0,0.00021,2]
[424696363,1781057450000,-240.67988658,0.00021012,2]
[424696368,1781057450000,-1125.0,0.00021103,2]
[424696375,1781057450000,-300.0,0.00021138,2]
[424696361,1781057450000,-835.0,0.00021,2]
[424696366,1781057450000,-2504.46,0.00021087,2]
[424696371,1781057450000,-500.0,0.00021104,2]
[424696376,1781057450000,-188.41146214,0.00021139,2]
[424696381,1781057450000,-194.72792766,0.00021139,2]
[424696373,1781057450000,-300.0,0.00021138,2]
[424696352,1781057450000,-846.0,0.00021,2]
[424696523,1781057451000,-477.384432,0.000215,2]
[424696525,1781057451000,-477.384432,0.000215,2]
[424696529,1781057451000,-477.384432,0.000215,2]
[424696521,1781057451000,-151.0,0.000215,2]
[424696514,1781057451000,-151.0,0.000215,2]
[424696516,1781057451000,-151.0,0.000215,2]
[424696508,1781057451000,-300.0,0.00021499,2]
[424696510,1781057451000,-58507.25319846,0.000215,2]
[424696533,1781057451000,-300.0,0.000215,3]
[424696518,1781057451000,-151.0,0.000215,2]
[424696531,1781057451000,-300.0,0.000215,3]
[424696556,1781057451000,-2680.313307,0.000215,2]
[424696527,1781057451000,-477.384432,0.000215,2]
[424696538,1781057451000,-300.0,0.000215,3]
[424696542,1781057451000,-862.799608,0.000215,2]
[424696540,1781057451000,-300.0,0.000215,3]
[424696545,1781057451000,-862.799608,0.000215,2]
[424696547,1781057451000,-862.799608,0.000215,2]
[424696552,1781057451000,-2680.313307,0.000215,2]
[424696549,1781057451000,-862.799608,0.000215,2]
[424696560,1781057451000,-5259.416845,0.000215,2]
[424696558,1781057451000,-2680.313307,0.000215,2]
[424696506,1781057451000,-300.0,0.00021499,2]
[424696536,1781057451000,-300.0,0.000215,3]
[424696503,1781057451000,-666.0,0.00021499,2]
[424696475,1781057451000,-288.0,0.00021419,2]
[424696501,1781057451000,-5678.1804701,0.00021477,2]
[424696554,1781057451000,-2680.313307,0.000215,2]
[424696447,1781057451000,-1654.80926452,0.000214,2]
[424696449,1781057451000,-1747.91581194,0.000214,2]
[424696452,1781057451000,-300.0,0.00021418,2]
[424696454,1781057451000,-300.0,0.00021418,2]
[424696465,1781057451000,-750.0,0.00021419,2]
[424696461,1781057451000,-750.0,0.00021419,2]
[424696459,1781057451000,-750.0,0.00021419,2]
[424696463,1781057451000,-750.0,0.00021419,2]
[424696467,1781057451000,-750.0,0.00021419,2]
[424696469,1781057451000,-750.0,0.00021419,2]
[424696512,1781057451000,-225.82806976,0.000215,2]
[424696471,1781057451000,-750.0,0.00021419,2]
[424696473,1781057451000,-750.0,0.00021419,2]
[424696477,1781057451000,-184.70668,0.00021462,2]
[424696479,1781057451000,-184.6934,0.00021462,2]
[424696484,1781057451000,-666.0,0.00021476,2]
[424696491,1781057451000,-479445.1406921,0.00021477,2]
[424696482,1781057451000,-2000.0,0.00021464,7]
[424696488,1781057451000,-300.0,0.00021476,2]
[424696492,1781057451000,-12337.6125689,0.00021477,2]
[424696497,1781057451000,-309176.8384652,0.00021477,2]
[424696495,1781057451000,-2475.0724026,0.00021477,2]
[424696499,1781057451000,-193127.7462948,0.00021477,2]
[424696486,1781057451000,-300.0,0.00021476,2]
[424696562,1781057451000,-5259.416845,0.000215,2]
[424696456,1781057451000,-750.0,0.00021419,2]
[424696567,1781057451000,-5259.416845,0.000215,2]
[424696635,1781057451000,-2916.86485973,0.00021687,2]
[424696633,1781057451000,-200.0,0.00021687,2]
[424696644,1781057451000,-2405.55389863,0.00021687,2]
[424696642,1781057451000,-242.15909246,0.00021687,2]
[424696646,1781057451000,-242.15909246,0.00021687,2]
[424696640,1781057451000,-151.0,0.00021687,2]